bitfinex/quotes_SOLUSD_20230104
["timestamp","ask_amount","ask_price","bid_price","bid_amount"]
[1672834630562,30.14,13.73,13.717,20.0]
[1672834630563,54.68,13.727,13.717,20.0]
[1672834630775,54.68,13.729,13.717,20.0]
[1672834630983,110.9384,13.732,13.717,20.0]
[1672834630984,54.67,13.731,13.717,20.0]
[1672834631200,165.5984,13.732,13.717,74.72]
[1672834632774,5.98,13.73,13.717,74.72]
[1672834635417,5.98,13.73,13.717,20.0]
[1672834635815,54.68,13.729,13.717,20.0]
[1672834637300,54.68,13.729,13.717,332.0]
[1672834637725,54.68,13.729,13.717,383.7]
[1672834638341,54.68,13.729,13.717,71.7]
[1672834638671,30.06,13.73,13.717,20.0]
[1672834638990,54.68,13.729,13.717,20.0]
[1672834639195,5.99,13.73,13.717,20.0]
[1672834639412,137.3086,13.736,13.717,94.2397]
[1672834639599,137.3086,13.736,13.718,24.5761]
[1672834639815,137.3086,13.736,13.719,70.06]
[1672834640025,191.9586,13.736,13.72,142.495]
[1672834640235,191.9586,13.736,13.721,70.48]
[1672834641731,137.3086,13.736,13.721,70.48]
[1672834642034,191.9586,13.736,13.721,70.48]
[1672834646062,5.98,13.73,13.72,118.1253]
[1672834646270,54.68,13.729,13.72,118.1253]
[1672834646673,54.68,13.729,13.716,18.0]
[1672834646878,54.68,13.729,13.717,20.0]
[1672834647114,6.05,13.73,13.717,52.04]
[1672834647721,6.05,13.73,13.717,32.04]
[1672834647937,24.17,13.73,13.717,32.04]
[1672834648791,78.5766,13.733,13.717,32.04]
[1672834648992,23.9166,13.733,13.717,32.04]
[1672834649207,23.9011,13.735,13.718,41.7811836]
[1672834649525,23.9011,13.735,13.719,32.04]
[1672834649739,23.9011,13.735,13.72,136.5646]
[1672834649940,23.9011,13.735,13.721,32.04]
[1672834650157,23.9011,13.735,13.722,42.5573]
[1672834650368,23.9011,13.735,13.723,32.04]
[1672834650557,23.9011,13.735,13.724,20.0]
[1672834652573,24.03,13.73,13.716,18.0]
[1672834652761,24.03,13.73,13.717,20.0]
[1672834653739,24.03,13.73,13.716,18.0]
[1672834654265,24.03,13.73,13.717,18.44]
[1672834655711,24.03,13.73,13.716,18.0]
[1672834655712,54.68,13.729,13.716,18.0]
[1672834655927,54.68,13.729,13.717,20.0]
[1672834658346,99.0,13.724,13.717,20.0]
[1672834664128,54.7,13.723,13.716,18.0]
[1672834668670,116.93698448,13.723,13.716,18.0]
[1672834672656,54.7,13.723,13.716,18.0]
[1672834673189,99.0,13.724,13.716,18.0]
[1672834673587,54.7,13.723,13.716,18.0]
[1672834679283,99.0,13.72,13.716,18.0]
[1672834687483,111.76669303,13.72,13.716,18.0]
[1672834687795,54.72,13.719,13.68,48.4812]
[1672834687986,120.68,13.71,13.695,185.7896]
[1672834688403,120.68,13.71,13.696,16.04]
[1672834689254,24.01,13.71,13.696,16.04]
[1672834690420,120.77,13.71,13.696,16.04]
[1672834690637,133.53669303,13.71,13.696,16.04]
[1672834690851,54.76,13.709,13.697,20.0]
[1672834692741,12.76669303,13.708,13.697,20.0]
[1672834692938,54.76,13.709,13.697,20.0]
[1672834694611,67.52669303,13.709,13.697,20.0]
[1672834696324,54.76,13.709,13.697,20.0]
[1672834696510,54.75,13.711,13.697,20.0]
[1672834696721,172.6812,13.712,13.698,23.0744]
[1672834697567,117.9412,13.712,13.698,23.0744]
[1672834697770,54.72,13.717,13.698,23.0744]
[1672834697980,54.72,13.719,13.699,33.47655]
[1672834698197,6.03,13.72,13.7,13.47557]
[1672834698406,6.03,13.72,13.701,43.8028]
[1672834699038,6.03,13.72,13.702,131.3879]
[1672834699464,6.03,13.72,13.703,20.0]
[1672834700726,54.72,13.719,13.703,20.0]
[1672834703349,6.03,13.72,13.703,20.0]
[1672834704518,105.03,13.72,13.703,20.0]
[1672834705964,54.72,13.719,13.703,20.0]
[1672834710419,54.72,13.719,13.716,300.0]
[1672834712939,99.0,13.72,13.716,300.0]
[1672834713142,99.0,13.72,13.717,20.0]
[1672834714605,99.0,13.72,13.716,300.0]
[1672834717578,54.72,13.719,13.716,300.0]
[1672834718315,54.69,13.725,13.716,300.0]
[1672834718719,12.41425863,13.724,13.716,300.0]
[1672834719048,54.7,13.723,13.716,300.0]
[1672834720622,67.11425863,13.723,13.716,300.0]
[1672834724825,66.11425863,13.723,13.716,300.0]
[1672834725550,114.51884544,13.722,13.716,300.0]
[1672834725759,54.71,13.721,13.716,300.0]
[1672834725973,202.71431097,13.721,13.716,300.0]
[1672834726288,168.00431097,13.72,13.716,300.0]
[1672834726501,168.00431097,13.72,13.716,222.2268]
[1672834726502,54.72,13.719,13.716,222.2268]
[1672834726712,20.0,13.718,13.716,132.0428]
[1672834726922,54.72,13.717,13.716,55.6523375]
[1672834727125,210.31005234,13.717,13.716,55.6523375]
[1672834727340,222.72431097,13.717,13.716,28.2856375]
[1672834728611,173.98933682,13.717,13.716,28.2856375]
[1672834732399,218.50177726,13.717,13.716,28.2856375]
[1672834732609,218.50177726,13.717,13.683,312.0]
[1672834732610,37.63713719,13.714,13.683,312.0]
[1672834732799,120.62,13.7,13.684,177.7233]
[1672834733129,24.07,13.7,13.684,177.7233]
[1672834733538,24.07,13.7,13.684,244.63479112]
[1672834734056,24.07,13.7,13.685,20.0]
[1672834734267,121.14,13.7,13.684,177.7233]
[1672834736161,121.14,13.7,13.685,20.0]
[1672834739227,24.44,13.7,13.685,20.0]
[1672834739550,121.28,13.7,13.685,20.0]
[1672834742377,24.44,13.7,13.685,20.0]
[1672834744586,24.44,13.7,13.685,41.7811836]
[1672834747310,24.44,13.7,13.686,21.7811836]
[1672834747520,24.44,13.7,13.687,20.0]
[1672834747729,24.44,13.7,13.687,44.0652]
[1672834748475,121.32,13.7,13.687,44.0652]
[1672834749205,24.11,13.7,13.687,44.0652]
[1672834750691,120.95,13.7,13.687,44.0652]
[1672834751736,54.8,13.699,13.687,44.0652]
[1672834754998,20.0,13.698,13.684,109.764]
[1672834755198,120.62,13.69,13.684,109.764]
[1672834755941,24.07,13.69,13.684,109.764]
[1672834756144,24.11,13.7,13.684,109.764]
[1672834756353,24.11,13.7,13.685,20.0]
[1672834756979,24.11,13.7,13.686,48.2322]
[1672834757186,120.95,13.7,13.687,20.0]
[1672834757408,121.05,13.7,13.687,20.0]
[1672834757834,54.8,13.699,13.687,20.0]
[1672834760570,12.41425863,13.698,13.684,109.764]
[1672834760777,24.17,13.69,13.684,109.764]
[1672834762450,213.077,13.697,13.684,109.764]
[1672834762756,20.0,13.696,13.684,109.764]
[1672834762973,53.81,13.695,13.684,109.764]
[1672834763910,49.4561,13.697,13.684,109.764]
[1672834764121,49.4561,13.697,13.685,20.0]
[1672834764546,54.78,13.702,13.685,20.0]
[1672834764761,54.78,13.702,13.686,47.638]
[1672834764984,54.78,13.702,13.687,20.0]
[1672834765407,24.17,13.7,13.687,20.0]
[1672834767710,54.78,13.704,13.687,20.0]
[1672834772956,23.98,13.7,13.687,20.0]
[1672834773479,23.98,13.7,13.687,332.0]
[1672834773910,120.82,13.7,13.687,332.0]
[1672834774116,24.11,13.7,13.687,332.0]
[1672834774320,24.11,13.7,13.687,20.0]
[1672834775055,121.05,13.7,13.687,20.0]
[1672834778429,54.8,13.699,13.687,20.0]
[1672834779039,20.0,13.698,13.682,2.002]
[1672834779250,24.17,13.69,13.682,2.002]
[1672834779465,54.84,13.689,13.681,24.3375]
[1672834779670,54.84,13.689,13.68,46.6329]
[1672834781172,24.17,13.69,13.68,46.6329]
[1672834781491,121.05,13.69,13.68,46.6329]
[1672834784229,24.11,13.69,13.68,46.6329]
[1672834784616,120.95,13.69,13.68,46.6329]
[1672834785251,54.84,13.689,13.68,46.6329]
[1672834796211,120.95,13.69,13.68,46.6329]
[1672834796406,24.11,13.69,13.68,46.6329]
[1672834797998,121.18,13.69,13.68,46.6329]
[1672834800501,24.44,13.69,13.68,46.6329]
[1672834800716,23.8841,13.694,13.68,46.6329]
[1672834801234,54.82,13.693,13.68,46.6329]
[1672834801455,23.8841,13.694,13.68,46.6329]
[1672834802079,6.08,13.69,13.68,46.6329]
[1672834803964,23.8841,13.694,13.68,46.6329]
[1672834805359,23.8841,13.694,13.681,44.05980699]
[1672834806185,54.8,13.699,13.682,20.0]
[1672834806403,6.13,13.7,13.682,175.30661474]
[1672834806609,6.13,13.7,13.682,219.36642173]
[1672834806818,6.08,13.7,13.683,45.44121474]
[1672834807146,6.08,13.7,13.684,20.0]
[1672834807349,6.08,13.7,13.685,23.9368]
[1672834807558,78.1524,13.702,13.686,20.0]
[1672834807773,78.1524,13.702,13.686,44.2779]
[1672834814588,23.3724,13.702,13.686,44.2779]
[1672834814800,78.1524,13.702,13.686,44.2779]
[1672834815731,23.3724,13.702,13.686,44.2779]
[1672834817212,23.3724,13.702,13.686,356.2779]
[1672834820595,6.08,13.7,13.686,89.71911474]
[1672834820794,6.08,13.7,13.686,44.2779]
[1672834821630,54.8,13.699,13.686,44.2779]
[1672834822374,6.08,13.7,13.686,44.2779]
[1672834822694,54.8,13.699,13.686,44.2779]
[1672834822884,6.08,13.7,13.686,44.2779]
[1672834825420,42.84328714,13.7,13.686,44.2779]
[1672834825630,42.84328714,13.7,13.664,104.93090163]
[1672834825631,74.8,13.699,13.664,104.93090163]
[1672834825841,74.8,13.699,13.677,164.9749]
[1672834825842,30.31,13.69,13.677,164.9749]
[1672834826050,6.03,13.69,13.677,164.9749]
[1672834826248,6.03,13.69,13.678,2.01]
[1672834827192,6.03,13.69,13.678,22.01]
[1672834827413,6.03,13.69,13.678,2.01]
[1672834828782,6.03,13.69,13.678,22.01]
[1672834829321,24.0814,13.692,13.678,22.01]
[1672834834465,24.14,13.69,13.678,22.01]
[1672834837209,121.34,13.69,13.678,22.01]
[1672834837624,54.84,13.689,13.678,22.01]
[1672834843302,20.0,13.688,13.678,2.01]
[1672834843511,54.84,13.687,13.678,2.01]
[1672834843828,20.0,13.686,13.678,2.01]
[1672834844041,54.85,13.685,13.678,2.01]
[1672834844255,79.4352,13.685,13.678,2.01]
[1672834846769,12.44328714,13.684,13.678,2.01]
[1672834846981,54.86,13.683,13.678,2.01]
[1672834847190,54.86,13.684,13.678,2.01]
[1672834848451,30.0,13.683,13.678,2.01]
[1672834848879,30.0,13.681,13.678,2.01]
[1672834849082,54.87,13.68,13.662,67.0516]
[1672834849295,24.29,13.67,13.662,67.0516]
[1672834850347,24.29,13.67,13.663,30.0]
[1672834850565,24.29,13.67,13.664,20.0]
[1672834850883,24.44,13.68,13.665,30.0]
[1672834851212,22.5391,13.682,13.667,30.0]
[1672834851417,24.39,13.68,13.669,30.0]
[1672834851841,74.85,13.686,13.671,30.0]
[1672834851842,54.85,13.686,13.671,30.0]
[1672834852050,24.32,13.69,13.671,30.0]
[1672834852051,54.84,13.689,13.672,20.0]
[1672834852268,54.84,13.689,13.673,77.9414]
[1672834852475,79.15,13.69,13.675,30.0]
[1672834852695,79.22,13.69,13.677,30.0]
[1672834853214,24.39,13.69,13.678,20.0]
[1672834854148,24.39,13.69,13.679,30.0]
[1672834861839,54.39,13.69,13.678,42.7489]
[1672834862249,30.0,13.689,13.678,42.7489]
[1672834862782,24.39,13.69,13.678,42.7489]
[1672834863098,54.39,13.69,13.678,42.7489]
[1672834864548,54.39,13.69,13.679,24.0819]
[1672834864995,24.39,13.69,13.679,24.0819]
[1672834867521,24.39,13.69,13.68,30.0]
[1672834870751,24.39,13.69,13.679,54.0819]
[1672834870962,54.39,13.69,13.679,24.0819]
[1672834874337,24.39,13.69,13.679,24.0819]
[1672834875065,54.39,13.69,13.679,24.0819]
[1672834875702,24.39,13.69,13.679,24.0819]
[1672834875913,101.3307,13.692,13.68,30.0]
[1672834877504,46.5107,13.692,13.68,81.2151855]
[1672834878127,54.79,13.7,13.681,20.0]
[1672834878331,23.1034,13.702,13.682,13.4933]
[1672834878537,77.8834,13.702,13.684,30.0]
[1672834878772,23.1034,13.702,13.684,30.0]
[1672834879168,23.1034,13.702,13.686,30.0]
[1672834879376,23.1034,13.702,13.687,134.7341]
[1672834879587,23.1034,13.702,13.688,30.0]
[1672834879798,23.1034,13.702,13.689,45.3565]
[1672834880136,6.08,13.7,13.689,45.3565]
[1672834881078,6.07,13.7,13.689,45.3565]
[1672834895599,30.0,13.702,13.689,45.3565]
[1672834896540,6.08,13.7,13.689,45.3565]
[1672834897486,6.08,13.7,13.69,30.0]
[1672834900529,6.08,13.7,13.689,45.3565]
[1672834901367,6.08,13.7,13.689,357.3565]
[1672834901895,6.08,13.7,13.69,30.0]
[1672834902411,165.2026,13.703,13.69,30.0]
[1672834902412,135.2026,13.703,13.69,30.0]
[1672834902730,135.2026,13.703,13.69,81.2151855]
[1672834906620,135.2026,13.703,13.69,51.2151855]
[1672834906827,6.08,13.7,13.69,51.2151855]
[1672834907036,6.08,13.7,13.689,45.3565]
[1672834914206,30.0,13.702,13.689,45.3565]
[1672834915550,30.0,13.702,13.689,44.8565]
[1672834918287,6.08,13.7,13.689,44.8565]
[1672834918703,6.08,13.7,13.689,356.8565]
[1672834923868,30.4,13.7,13.689,356.8565]
[1672834924089,30.3,13.7,13.689,356.8565]
[1672834924274,6.04,13.7,13.689,44.8565]
[1672834927326,6.04,13.7,13.689,356.8565]
[1672834927977,6.04,13.7,13.69,30.0]
[1672834928901,6.04,13.7,13.689,44.8565]
[1672834931229,6.04,13.7,13.69,312.0]
[1672834931443,6.04,13.7,13.691,30.0]
[1672834931962,6.04,13.7,13.69,312.0]
[1672834932281,6.04,13.7,13.691,30.0]
[1672834936476,6.04,13.7,13.689,44.8565]
[1672834938273,6.04,13.7,13.69,30.0]
[1672834941111,6.04,13.7,13.689,44.8565]
[1672834941523,6.04,13.7,13.69,30.0]
[1672834945618,6.05,13.7,13.69,30.0]
[1672834945839,6.05,13.7,13.689,44.8565]
[1672834946975,30.33,13.7,13.689,44.8565]
[1672834947306,6.09,13.7,13.689,44.8565]
[1672834947516,6.09,13.7,13.69,312.0]
[1672834948246,165.2026,13.703,13.69,358.37346729]
[1672834948454,135.2026,13.703,13.69,46.37346729]
[1672834948665,30.0,13.708,13.691,30.0]
[1672834948871,85.5192,13.71,13.692,20.0]
[1672834949086,30.7692,13.71,13.693,22.9646]
[1672834949417,30.7692,13.71,13.695,30.0]
[1672834949630,30.7692,13.71,13.696,158.7072]
[1672834950360,30.7692,13.71,13.697,30.0]
[1672834950549,30.7692,13.71,13.698,20.0]
[1672834951397,24.6792,13.71,13.699,30.0]
[1672834951611,24.6792,13.71,13.7,4.121]
[1672834954968,24.6792,13.71,13.7,53.68951883]
[1672834955176,24.6792,13.71,13.701,30.0]
[1672834955605,24.6792,13.71,13.701,79.56851883]
[1672834955815,24.6792,13.71,13.703,30.0]
[1672834956017,133.493,13.713,13.703,30.0]
[1672834956230,24.074,13.713,13.703,30.0]
[1672834959273,24.074,13.713,13.702,37.77]
[1672834959499,54.074,13.713,13.701,49.56851883]
[1672834959918,37.84711809,13.729,13.703,30.0]
[1672834960237,6.4378888,13.737,13.703,30.0]
[1672834960238,6.03,13.73,13.705,30.0]
[1672834960450,12.12,13.73,13.706,98.38465286]
[1672834960762,30.0,13.728,13.708,38.57465286]
[1672834961083,54.68,13.727,13.71,38.57465286]
[1672834961290,6.05,13.72,13.71,38.57465286]
[1672834961831,54.69,13.725,13.709,38.57465286]
[1672834962045,54.69,13.725,13.711,21.7811836]
[1672834962542,54.69,13.725,13.712,30.0]
[1672834962967,54.68,13.729,13.713,36.93]
[1672834963178,213.3241,13.734,13.714,20.0]
[1672834963383,213.3241,13.734,13.715,66.92]
[1672834963612,213.3241,13.734,13.716,20.0]
[1672834963804,102.3953,13.734,13.717,40.27]
[1672834964018,102.3953,13.734,13.718,20.0]
[1672834964351,102.3953,13.734,13.719,30.0]
[1672834964539,102.3953,13.734,13.719,68.57465286]
[1672834965901,6.04,13.73,13.719,38.57465286]
[1672834966133,30.0,13.728,13.719,38.57465286]
[1672834966533,54.68,13.727,13.718,20.0]
[1672834966746,54.68,13.727,13.716,20.0]
[1672834966959,54.68,13.727,13.717,38.57465286]
[1672834967172,54.68,13.727,13.718,20.0]
[1672834967694,54.68,13.727,13.717,20.0]
[1672834968739,172.4485,13.733,13.718,100.02583646]
[1672834968984,172.4485,13.733,13.719,20.0]
[1672834969288,172.4485,13.733,13.72,68.57465286]
[1672834969600,54.66,13.733,13.72,68.57465286]
[1672834969808,54.66,13.733,13.722,38.57465286]
[1672834971391,6.02,13.73,13.722,38.57465286]
[1672834971923,6.02,13.73,13.721,38.57465286]
[1672834972755,6.02,13.73,13.721,60.35583646]
[1672834973081,6.02,13.73,13.721,372.35583646]
[1672834973275,6.02,13.73,13.721,350.57465286]
[1672834974527,6.02,13.73,13.723,38.57465286]
[1672834975582,6.02,13.73,13.722,30.0]
[1672834975907,6.02,13.73,13.721,38.57465286]
[1672834978005,6.02,13.73,13.72,38.57465286]
[1672834978342,6.02,13.73,13.72,350.57465286]
[1672834979271,6.02,13.73,13.72,38.57465286]
[1672834980434,6.02,13.73,13.721,30.0]
[1672834980620,6.02,13.73,13.72,38.57465286]
[1672834981039,30.24,13.73,13.719,20.0]
[1672834981265,54.68,13.729,13.709,45.00865286]
[1672834981471,54.68,13.729,13.709,61.24485286]
[1672834981472,6.04,13.72,13.709,61.24485286]
[1672834983357,6.04,13.72,13.709,22.6702]
[1672834983787,30.21,13.72,13.709,22.6702]
[1672834987280,30.0,13.719,13.709,22.6702]
[1672834988519,84.72,13.719,13.709,22.6702]
[1672834988746,30.0,13.719,13.709,22.6702]
[1672834990640,84.72,13.719,13.709,22.6702]
[1672834991039,30.0,13.719,13.709,22.6702]
[1672834991254,60.21,13.72,13.709,22.6702]
[1672834991464,36.03,13.72,13.709,22.6702]
[1672834993583,6.03,13.72,13.709,22.6702]
[1672835000118,6.04,13.72,13.709,22.6702]
[1672835002197,30.2,13.72,13.709,22.6702]
[1672835002409,30.2,13.72,13.683,104.93090163]
[1672835002410,54.72,13.719,13.683,104.93090163]
[1672835002620,6.04,13.71,13.698,162.7458]
[1672835002837,6.04,13.71,13.699,20.0]
[1672835003049,6.04,13.71,13.698,162.7458]
[1672835003905,6.01,13.71,13.698,162.7458]
[1672835005479,6.01,13.71,13.699,20.0]
[1672835006617,6.01,13.71,13.699,50.0]
[1672835006825,6.01,13.71,13.699,20.0]
[1672835017058,30.17,13.71,13.699,20.0]
[1672835017262,30.0,13.709,13.699,20.0]
[1672835022435,60.2,13.71,13.699,20.0]
[1672835022619,60.21,13.71,13.699,20.0]
[1672835024201,60.21,13.71,13.687,24.8848]
[1672835024202,31.98036924,13.709,13.687,24.8848]
[1672835024410,6.04,13.7,13.689,46.7365]
[1672835026637,6.04,13.7,13.69,36.58]
[1672835037974,6.04,13.7,13.689,46.7365]
[1672835038179,6.04,13.7,13.69,29.5]
[1672835038386,30.0,13.699,13.689,46.7365]
[1672835042099,30.0,13.699,13.69,31.67]
[1672835042826,30.0,13.699,13.689,46.7365]
[1672835044095,30.0,13.699,13.69,37.05]
[1672835045141,30.26,13.7,13.69,37.05]
[1672835046718,6.06,13.7,13.69,37.05]
[1672835048498,140.5139,13.704,13.69,37.05]
[1672835048710,140.5139,13.704,13.691,30.0]
[1672835048936,6.04,13.7,13.69,37.05]
[1672835049239,6.04,13.7,13.691,30.0]
[1672835049456,6.04,13.7,13.692,45.64]
[1672835050201,6.04,13.7,13.691,75.82]
[1672835054069,6.04,13.7,13.691,45.82]
[1672835054603,30.18,13.71,13.693,30.0]
[1672835054811,30.18,13.71,13.694,236.01477056]
[1672835055021,6.0,13.71,13.695,30.0]
[1672835055243,6.0,13.71,13.697,30.0]
[1672835055458,6.0,13.71,13.698,66.38]
[1672835055860,6.0,13.71,13.698,20.0]
[1672835056087,77.58739238,13.71,13.695,42.87]
[1672835056300,30.0,13.708,13.691,42.88]
[1672835056614,6.04,13.7,13.691,42.88]
[1672835059146,6.04,13.7,13.69,68.5363]
[1672835060818,6.04,13.7,13.691,30.0]
[1672835061032,6.04,13.7,13.69,68.5363]
[1672835066391,6.04,13.7,13.69,98.5363]
[1672835066605,6.04,13.7,13.69,68.5363]
[1672835066913,6.04,13.7,13.691,30.0]
[1672835067127,6.04,13.7,13.692,36.39]
[1672835068052,6.04,13.7,13.691,37.63]
[1672835068490,6.04,13.7,13.69,38.18]
[1672835071334,6.04,13.7,13.692,30.0]
[1672835071520,6.04,13.7,13.692,72.69]
[1672835071737,6.04,13.7,13.693,537.35888587]
[1672835072486,6.04,13.7,13.694,30.0]
[1672835072704,6.04,13.7,13.693,537.35888587]
[1672835075521,30.19,13.7,13.693,537.35888587]
[1672835077113,30.19,13.7,13.689,83.7935]
[1672835077303,30.0,13.699,13.689,83.7935]
[1672835077512,30.0,13.699,13.689,46.3535]
[1672835077718,72.14469705,13.699,13.689,46.3535]
[1672835079927,30.0,13.699,13.689,46.3535]
[1672835096257,30.0,13.697,13.689,46.3535]
[1672835099105,77.42739238,13.699,13.689,46.3535]
[1672835099727,30.0,13.699,13.689,46.3535]
[1672835111073,30.35,13.7,13.689,46.3535]
[1672835111268,6.05,13.7,13.689,46.3535]
[1672835111908,6.05,13.7,13.689,89.0235]
[1672835112541,6.05,13.7,13.69,30.0]
[1672835112962,23.3429,13.702,13.69,30.0]
[1672835113171,23.3429,13.702,13.691,38.94]
[1672835113373,23.3429,13.702,13.692,30.0]
[1672835113588,286.7103,13.706,13.692,30.0]
[1672835113914,20.0,13.705,13.692,30.0]
[1672835117687,24.5157,13.708,13.692,30.0]
[1672835117898,24.5157,13.708,13.694,30.0]
[1672835118110,24.5157,13.708,13.695,69.28901339]
[1672835118443,24.5157,13.708,13.696,30.0]
[1672835118655,24.5157,13.708,13.697,20.0]
[1672835118862,24.5157,13.708,13.698,24.4947]
[1672835119047,24.5157,13.708,13.699,20.0]
[1672835119263,36.1,13.71,13.699,20.0]
[1672835119682,6.1,13.71,13.699,20.0]
[1672835120017,6.1,13.71,13.7,30.0]
[1672835120213,6.1,13.71,13.699,20.0]
[1672835123478,30.0,13.711,13.699,20.0]
[1672835125473,6.08,13.71,13.699,20.0]
[1672835125675,6.06,13.71,13.699,20.0]
[1672835126011,54.74,13.712,13.7,30.0]
[1672835126325,6.06,13.71,13.7,30.0]
[1672835127688,6.06,13.71,13.699,20.0]
[1672835128843,6.06,13.71,13.699,50.0]
[1672835130104,6.06,13.71,13.699,20.0]
[1672835130421,6.06,13.71,13.7,30.0]
[1672835130611,27.78529789,13.713,13.7,52.28]
[1672835131451,15.121779,13.713,13.7,52.28]
[1672835132294,54.72,13.719,13.703,8.16798596]
[1672835132507,30.21,13.72,13.705,30.0]
[1672835132717,81.21681238,13.72,13.706,92.65483296]
[1672835133031,81.21681238,13.72,13.707,30.0]
[1672835133248,81.21681238,13.72,13.708,37.88483296]
[1672835133463,81.21681238,13.72,13.709,30.0]
[1672835133776,81.21681238,13.72,13.71,9.17338124]
[1672835133984,81.21681238,13.72,13.709,53.5072]
[1672835134517,81.21681238,13.72,13.71,8.30139873]
[1672835135339,12.66351889,13.719,13.71,8.30139873]
[1672835139976,57.03681238,13.72,13.71,8.30139873]
[1672835142297,6.03,13.72,13.71,8.30139873]
[1672835143131,18.69351889,13.72,13.71,8.30139873]
[1672835143341,73.40351889,13.72,13.709,141.4537]
[1672835143663,73.38351889,13.72,13.709,141.4537]
[1672835143857,60.72,13.72,13.709,141.4537]
[1672835144070,60.72,13.72,13.71,9.07316352]
[1672835144392,60.72,13.72,13.709,141.4537]
[1672835144602,30.0,13.719,13.709,141.4537]
[1672835144819,42.66351889,13.719,13.709,141.4537]
[1672835145534,12.66351889,13.719,13.709,141.4537]
[1672835145749,12.66351889,13.719,13.71,7.95460374]
[1672835145966,12.66351889,13.719,13.709,141.4537]
[1672835148177,6.01,13.72,13.709,141.4537]
[1672835148585,6.01,13.72,13.71,8.2787758]
[1672835148798,12.66351889,13.719,13.709,141.4537]
[1672835149228,12.66351889,13.719,13.71,426.99988587]
[1672835149425,12.66351889,13.719,13.711,41.9402796]
[1672835149641,6.01,13.72,13.711,41.9402796]
[1672835149642,6.01,13.72,13.712,91.89288587]
[1672835149857,6.01,13.72,13.713,11.9402796]
[1672835150176,6.01,13.72,13.712,11.9402796]
[1672835156166,12.66351889,13.722,13.712,11.9402796]
[1672835156380,74.31801238,13.723,13.715,11.9402796]
[1672835156593,74.31801238,13.723,13.714,30.0]
[1672835156594,6.04,13.72,13.714,30.0]
[1672835156786,6.04,13.72,13.715,11.9402796]
[1672835159002,6.04,13.72,13.715,12.94318812]
[1672835159216,24.3147,13.725,13.714,30.0]
[1672835159406,23.9904,13.726,13.714,30.0]
[1672835159619,20.0,13.725,13.714,30.0]
[1672835159843,6.06,13.72,13.714,30.0]
[1672835161633,20.0,13.725,13.714,30.0]
[1672835163111,12.66351889,13.724,13.714,30.0]
[1672835163625,12.66351889,13.724,13.713,30.0]